[Event "*** Titled Tuesday 3|2 Blitz"]
[Site "Chess.com"]
[Date "2015.07.07"]
[Round "8"]
[White "stepanosinovsky"]
[Black "wanyaland"]
[Result "0-1"]
[WhiteElo "2270"]
[BlackElo "2182"]
[TimeControl "180+2"]
[EndTime "12:42:12 PDT"]
[Termination "wanyaland won on time"]

1. g3 {[%clk 0:03:01.9]} 1... d5 {[%clk 0:02:54.9]} 2. Bg2 {[%clk 0:03:03.8]}
2... c6 {[%clk 0:02:56.4]} 3. d3 {[%clk 0:03:05.7]} 3... e5 {[%clk 0:02:57.3]}
4. Nd2 {[%clk 0:03:07.6]} 4... Nf6 {[%clk 0:02:57.8]} 5. Ngf3 {[%clk 0:03:07.6]}
5... Bd6 {[%clk 0:02:57.7]} 6. c4 {[%clk 0:03:07.9]} 6... O-O {[%clk 0:02:58.2]}
7. O-O {[%clk 0:03:08.6]} 7... Re8 {[%clk 0:02:57.5]} 8. cxd5 {[%clk 0:03:09]}
8... cxd5 {[%clk 0:02:56.9]} 9. e4 {[%clk 0:03:10.2]} 9... Nc6 {[%clk 0:02:56]}
10. exd5 {[%clk 0:03:09.4]} 10... Nxd5 {[%clk 0:02:56.2]} 11. a3 {[%clk
0:03:06.2]} 11... Bf5 {[%clk 0:02:52.3]} 12. Ne4 {[%clk 0:03:05.8]} 12... Bf8
{[%clk 0:02:52.6]} 13. Qb3 {[%clk 0:03:02]} 13... Nb6 {[%clk 0:02:48.7]} 14.
Neg5 {[%clk 0:02:34.6]} 14... Bg6 {[%clk 0:02:48]} 15. Nh4 {[%clk 0:02:33.9]}
15... Qxd3 {[%clk 0:02:43.6]} 16. Qa2 {[%clk 0:02:26.4]} 16... Qc4 {[%clk
0:02:32.6]} 17. b3 {[%clk 0:02:26.8]} 17... Qc2 {[%clk 0:02:18.2]} 18. Nxg6
{[%clk 0:01:58]} 18... Qxa2 {[%clk 0:02:06.1]} 19. Rxa2 {[%clk 0:01:59.9]} 19...
hxg6 {[%clk 0:02:06.6]} 20. b4 {[%clk 0:02:01.5]} 20... Rad8 {[%clk 0:02:04.8]}
21. b5 {[%clk 0:01:37.8]} 21... Nd4 {[%clk 0:02:05]} 22. a4 {[%clk 0:01:38.6]}
22... f6 {[%clk 0:02:01.3]} 23. Nf3 {[%clk 0:01:23.2]} 23... Nxf3+ {[%clk
0:02:01.3]} 24. Bxf3 {[%clk 0:01:25.1]} 24... e4 {[%clk 0:02:02.4]} 25. Bd1
{[%clk 0:01:26.6]} 25... f5 {[%clk 0:01:59.9]} 26. Bb3+ {[%clk 0:01:27]} 26...
Kh7 {[%clk 0:02:01.4]} 27. Be3 {[%clk 0:01:25.8]} 27... Nc8 {[%clk 0:01:58]} 28.
a5 {[%clk 0:01:25.3]} 28... Rd3 {[%clk 0:01:42.2]} 29. Bc4 {[%clk 0:01:16.3]}
29... Rc3 {[%clk 0:01:40.5]} 30. Bd5 {[%clk 0:01:17.2]} 30... b6 {[%clk
0:01:32.6]} 31. Bb7 {[%clk 0:01:14.9]} 31... Nd6 {[%clk 0:01:27.9]} 32. Bc6
{[%clk 0:01:14.3]} 32... Rb8 {[%clk 0:01:28.1]} 33. Rd1 {[%clk 0:01:02]} 33...
Nc4 {[%clk 0:01:27.9]} 34. Bd4 {[%clk 0:00:53.9]} 34... Rd3 {[%clk 0:01:24.6]}
35. Rxd3 {[%clk 0:00:49.1]} 35... exd3 {[%clk 0:01:20.2]} 36. axb6 {[%clk
0:00:31.2]} 36... axb6 {[%clk 0:01:16.8]} 37. Bd5 {[%clk 0:00:24.6]} 37... Rd8
{[%clk 0:01:12.2]} 38. Bxc4 {[%clk 0:00:21.3]} 38... Rxd4 {[%clk 0:01:13]} 39.
Bb3 {[%clk 0:00:19]} 39... d2 {[%clk 0:01:09.7]} 40. Ra1 {[%clk 0:00:17.3]}
40... Bb4 {[%clk 0:01:08.2]} 41. Kg2 {[%clk 0:00:11.2]} 41... g5 {[%clk
0:01:06.1]} 42. Bd1 {[%clk 0:00:11.1]} 42... g4 {[%clk 0:01:05.8]} 43. h3 {[%clk
0:00:12.3]} 43... gxh3+ {[%clk 0:01:02.2]} 44. Kxh3 {[%clk 0:00:14.2]} 44... g5
{[%clk 0:01:02.9]} 45. g4 {[%clk 0:00:15.7]} 45... f4 {[%clk 0:01:02.9]} 46. Kg2
{[%clk 0:00:16.8]} 46... Bc3 {[%clk 0:01:00.6]} 47. Rb1 {[%clk 0:00:17.3]} 47...
Kg6 {[%clk 0:00:59.5]} 48. Kf3 {[%clk 0:00:15.7]} 48... Kf6 {[%clk 0:01:00.2]}
49. Bc2 {[%clk 0:00:15.7]} 49... Ke5 {[%clk 0:01:00.6]} 50. Ke2 {[%clk 0:00:17]}
50... Kd6 {[%clk 0:01:00.7]} 51. Kd1 {[%clk 0:00:12.1]} 51... Kc5 {[%clk
0:01:01.4]} 52. f3 {[%clk 0:00:11.8]} 52... Rd7 {[%clk 0:00:58.8]} 53. Bf5
{[%clk 0:00:07]} 53... Re7 {[%clk 0:00:58.5]} 54. Kc2 {[%clk 0:00:05.4]} 54...
Re1 {[%clk 0:00:53.4]} 55. Rd1 {[%clk 0:00:05.2]} 55... Kd4 {[%clk 0:00:51.9]}
0-1

[Event "*** Titled Tuesday 3|2 Blitz"]
[Site "Chess.com"]
[Date "2015.07.07"]
[Round "8"]
[White "Danirod"]
[Black "WanderingPuppet"]
[Result "1-0"]
[WhiteElo "2388"]
[BlackElo "2194"]
[TimeControl "180+2"]
[EndTime "12:42:27 PDT"]
[Termination "Danirod won on time"]

1. e4 {[%clk 0:03:01.9]} 1... c5 {[%clk 0:02:58.8]} 2. Nf3 {[%clk 0:03:02.8]}
2... d6 {[%clk 0:02:59.5]} 3. d4 {[%clk 0:03:03.7]} 3... cxd4 {[%clk 0:03:01.4]}
4. Nxd4 {[%clk 0:03:05.3]} 4... Nf6 {[%clk 0:03:02.4]} 5. Nc3 {[%clk 0:03:06.6]}
5... a6 {[%clk 0:03:03.9]} 6. Be3 {[%clk 0:03:07.8]} 6... e6 {[%clk 0:03:05.2]}
7. g4 {[%clk 0:03:08.8]} 7... Be7 {[%clk 0:02:51.4]} 8. g5 {[%clk 0:03:09.6]}
8... Nfd7 {[%clk 0:02:52.3]} 9. f4 {[%clk 0:03:09.9]} 9... Nc6 {[%clk
0:02:51.2]} 10. Qf3 {[%clk 0:03:08.9]} 10... Qa5 {[%clk 0:02:23.5]} 11. O-O-O
{[%clk 0:03:05.2]} 11... Nc5 {[%clk 0:02:19.9]} 12. Kb1 {[%clk 0:03:01.9]} 12...
Bd7 {[%clk 0:02:14.6]} 13. h4 {[%clk 0:02:58]} 13... O-O-O {[%clk 0:02:09.5]}
14. h5 {[%clk 0:02:53.1]} 14... h6 {[%clk 0:02:06.1]} 15. gxh6 {[%clk
0:02:42.8]} 15... Rxh6 {[%clk 0:01:52.1]} 16. Nb3 {[%clk 0:02:38]} 16... Nxb3
{[%clk 0:01:51.9]} 17. axb3 {[%clk 0:02:39.7]} 17... Rhh8 {[%clk 0:01:40]} 18.
Rg1 {[%clk 0:02:35.6]} 18... Qxh5 {[%clk 0:01:33.1]} 19. Qxh5 {[%clk 0:02:33.5]}
19... Rxh5 {[%clk 0:01:35]} 20. Rxg7 {[%clk 0:02:34.9]} 20... Rf8 {[%clk
0:01:27]} 21. Bd3 {[%clk 0:02:20.9]} 21... Bf6 {[%clk 0:01:24]} 22. Rgg1 {[%clk
0:02:21.7]} 22... Kc7 {[%clk 0:01:16.4]} 23. Rdf1 {[%clk 0:02:11.8]} 23... Bd4
{[%clk 0:01:12.3]} 24. Bxd4 {[%clk 0:02:10.4]} 24... Nxd4 {[%clk 0:01:14.2]} 25.
Rg7 {[%clk 0:02:11.4]} 25... Kd8 {[%clk 0:00:58.7]} 26. Kc1 {[%clk 0:02:04.3]}
26... Ke7 {[%clk 0:00:57.5]} 27. Rg2 {[%clk 0:01:36.5]} 27... Rfh8 {[%clk
0:00:54.5]} 28. Kd2 {[%clk 0:01:37.4]} 28... Rh2 {[%clk 0:00:54.2]} 29. Rff2
{[%clk 0:01:35.9]} 29... Rxg2 {[%clk 0:00:54.6]} 30. Rxg2 {[%clk 0:01:37.5]}
30... Rh4 {[%clk 0:00:55.4]} 31. Ke3 {[%clk 0:01:35.8]} 31... Nc6 {[%clk
0:00:49.4]} 32. Ne2 {[%clk 0:01:29.1]} 32... Rh3+ {[%clk 0:00:42.9]} 33. Kd2
{[%clk 0:01:25.7]} 33... Nb4 {[%clk 0:00:32.2]} 34. Rg8 {[%clk 0:01:20.1]} 34...
Nxd3 {[%clk 0:00:30.8]} 35. cxd3 {[%clk 0:01:21.1]} 35... Bb5 {[%clk 0:00:32.3]}
36. Rg3 {[%clk 0:00:59.3]} 36... Rh1 {[%clk 0:00:29.8]} 37. Nd4 {[%clk
0:00:49.6]} 37... Rb1 {[%clk 0:00:25.9]} 38. Kc2 {[%clk 0:00:47.1]} 38... Rf1
{[%clk 0:00:25.2]} 39. f5 {[%clk 0:00:42.5]} 39... Bd7 {[%clk 0:00:21.7]} 40.
fxe6 {[%clk 0:00:42.7]} 40... Bxe6 {[%clk 0:00:23.6]} 41. Rg8 {[%clk 0:00:36.5]}
41... Rf2+ {[%clk 0:00:17.4]} 42. Kc3 {[%clk 0:00:37.6]} 42... Rf1 {[%clk
0:00:17.4]} 43. Rb8 {[%clk 0:00:37.3]} 43... Rc1+ {[%clk 0:00:15.5]} 44. Nc2
{[%clk 0:00:38.6]} 44... b5 {[%clk 0:00:13.8]} 45. Rb6 {[%clk 0:00:39.3]} 45...
Rh1 {[%clk 0:00:08.7]} 46. Rxa6 {[%clk 0:00:38.1]} 46... Bg4 {[%clk 0:00:08.4]}
47. Nd4 {[%clk 0:00:37.6]} 47... Rc1+ {[%clk 0:00:05.1]} 48. Kb4 {[%clk
0:00:38.3]} 48... Rb1 {[%clk 0:00:05.2]} 49. Ra7+ {[%clk 0:00:35.9]} 49... Kf6
{[%clk 0:00:05.8]} 50. Nxb5 {[%clk 0:00:36.3]} 50... Rxb2 {[%clk 0:00:06.9]} 51.
Nxd6 {[%clk 0:00:36.8]} 51... Be6 {[%clk 0:00:08]} 52. Nc4 {[%clk 0:00:37.7]}
52... Re2 {[%clk 0:00:08.2]} 53. Kc3 {[%clk 0:00:38.6]} 53... Re1 {[%clk
0:00:08.8]} 54. Ra6 {[%clk 0:00:39.6]} 54... Rb1 {[%clk 0:00:08.9]} 55. b4
{[%clk 0:00:39.9]} 55... Ke7 {[%clk 0:00:09.6]} 56. Ra7+ {[%clk 0:00:41.1]}
56... Kd8 {[%clk 0:00:10.3]} 57. Rb7 {[%clk 0:00:40.7]} 57... Kc8 {[%clk
0:00:11.2]} 58. Nd6+ {[%clk 0:00:41.9]} 58... Kd8 {[%clk 0:00:12.7]} 59. e5
{[%clk 0:00:42.9]} 59... Rc1+ {[%clk 0:00:12.7]} 60. Kd4 {[%clk 0:00:44.3]}
60... Rf1 {[%clk 0:00:11.8]} 61. b5 {[%clk 0:00:44.7]} 61... Rf2 {[%clk
0:00:09]} 62. b6 {[%clk 0:00:44.4]} 62... Rb2 {[%clk 0:00:09.2]} 63. Kc5 {[%clk
0:00:43.5]} 63... Rc2+ {[%clk 0:00:09.8]} 64. Nc4 {[%clk 0:00:42.9]} 64... Re2
{[%clk 0:00:05.5]} 65. Kd6 {[%clk 0:00:40.3]} 65... Bc8 {[%clk 0:00:04.6]} 66.
Rxf7 {[%clk 0:00:39.5]} 1-0

[Event "*** Titled Tuesday 3|2 Blitz"]
[Site "Chess.com"]
[Date "2015.07.07"]
[Round "8"]
[White "BjarkeSahl"]
[Black "Lupul_Cenusiu"]
[Result "0-1"]
[WhiteElo "2120"]
[BlackElo "2380"]
[TimeControl "180+2"]
[EndTime "12:42:45 PDT"]
[Termination "Lupul_Cenusiu won on time"]

1. e4 {[%clk 0:03:01.9]} 1... c5 {[%clk 0:03:00.6]} 2. Nf3 {[%clk 0:03:00.1]}
2... e6 {[%clk 0:03:01.7]} 3. d4 {[%clk 0:02:57.1]} 3... cxd4 {[%clk 0:03:02.8]}
4. Nxd4 {[%clk 0:02:58.2]} 4... a6 {[%clk 0:03:03.9]} 5. Nc3 {[%clk 0:02:56.1]}
5... b5 {[%clk 0:03:03.5]} 6. Bd3 {[%clk 0:02:55.3]} 6... Bb7 {[%clk 0:03:04.5]}
7. O-O {[%clk 0:02:44.7]} 7... Nc6 {[%clk 0:03:03.8]} 8. Nxc6 {[%clk 0:02:42.1]}
8... Bxc6 {[%clk 0:03:04.9]} 9. Ne2 {[%clk 0:02:41.5]} 9... Bc5 {[%clk 0:03:00]}
10. Ng3 {[%clk 0:02:34.1]} 10... d6 {[%clk 0:02:51.8]} 11. Qg4 {[%clk
0:02:24.4]} 11... g6 {[%clk 0:02:50]} 12. Bg5 {[%clk 0:02:21.4]} 12... Qd7
{[%clk 0:02:44.5]} 13. Kh1 {[%clk 0:02:12.4]} 13... h6 {[%clk 0:02:42]} 14. Be3
{[%clk 0:02:10.9]} 14... e5 {[%clk 0:02:31.7]} 15. Qxd7+ {[%clk 0:02:04.6]}
15... Bxd7 {[%clk 0:02:24.5]} 16. Bd2 {[%clk 0:01:56.7]} 16... Ne7 {[%clk
0:02:19.6]} 17. b4 {[%clk 0:01:56.1]} 17... Bd4 {[%clk 0:02:18.7]} 18. c3 {[%clk
0:01:56.3]} 18... Bb6 {[%clk 0:02:19.8]} 19. c4 {[%clk 0:01:54.4]} 19... h5
{[%clk 0:02:04.5]} 20. Rac1 {[%clk 0:01:43.4]} 20... bxc4 {[%clk 0:01:59.2]} 21.
Bxc4 {[%clk 0:01:43.3]} 21... O-O {[%clk 0:01:57.5]} 22. Ne2 {[%clk 0:01:35.4]}
22... Kg7 {[%clk 0:01:53.3]} 23. Nc3 {[%clk 0:01:31.8]} 23... Rfc8 {[%clk
0:01:47.9]} 24. Nd5 {[%clk 0:01:25.7]} 24... Nxd5 {[%clk 0:01:47.8]} 25. Bxd5
{[%clk 0:01:24.8]} 25... Rab8 {[%clk 0:01:48.2]} 26. Kg1 {[%clk 0:01:11.5]}
26... Bb5 {[%clk 0:01:41.6]} 27. Rxc8 {[%clk 0:01:10.9]} 27... Rxc8 {[%clk
0:01:42]} 28. Rc1 {[%clk 0:01:12.3]} 28... Rb8 {[%clk 0:01:38.1]} 29. Be3 {[%clk
0:01:02.4]} 29... f5 {[%clk 0:01:27]} 30. Bxb6 {[%clk 0:00:56.3]} 30... Rxb6
{[%clk 0:01:28.1]} 31. Rc7+ {[%clk 0:00:56.9]} 31... Kf6 {[%clk 0:01:29.4]} 32.
f3 {[%clk 0:00:53.3]} 32... h4 {[%clk 0:01:28.7]} 33. g3 {[%clk 0:00:42.8]}
33... hxg3 {[%clk 0:01:28.4]} 34. hxg3 {[%clk 0:00:43.7]} 34... Kg5 {[%clk
0:01:29.6]} 35. Kf2 {[%clk 0:00:40.4]} 35... Bd3 {[%clk 0:01:25.7]} 36. a3
{[%clk 0:00:36.7]} 36... f4 {[%clk 0:01:20.7]} 37. Rc6 {[%clk 0:00:30.8]} 37...
Rxc6 {[%clk 0:01:12.4]} 38. Bxc6 {[%clk 0:00:31.8]} 38... Bb5 {[%clk 0:01:03]}
39. Bd5 {[%clk 0:00:23.7]} 39... Kf6 {[%clk 0:01:01.7]} 40. Bb3 {[%clk
0:00:24.8]} 40... g5 {[%clk 0:00:56.6]} 41. a4 {[%clk 0:00:24.9]} 41... Bd3
{[%clk 0:00:57.7]} 42. g4 {[%clk 0:00:18.8]} 42... Ke7 {[%clk 0:00:58.3]} 43.
Ke1 {[%clk 0:00:19]} 43... Kd7 {[%clk 0:00:57.8]} 44. Kd2 {[%clk 0:00:20.2]}
44... Bf1 {[%clk 0:00:58.8]} 45. Bd1 {[%clk 0:00:20.3]} 45... Kc7 {[%clk
0:00:58.4]} 46. Kc3 {[%clk 0:00:21.6]} 46... Kb6 {[%clk 0:00:57.5]} 47. Kb3
{[%clk 0:00:17.4]} 47... Kc6 {[%clk 0:00:56]} 48. Kc3 {[%clk 0:00:18.8]} 48...
d5 {[%clk 0:00:56.5]} 49. exd5+ {[%clk 0:00:15.4]} 49... Kxd5 {[%clk 0:00:57.5]}
50. Bc2 {[%clk 0:00:16.1]} 50... Kc6 {[%clk 0:00:54.5]} 51. Be4+ {[%clk
0:00:17.1]} 51... Kb6 {[%clk 0:00:55.8]} 52. a5+ {[%clk 0:00:11.4]} 52... Kb5
{[%clk 0:00:47.6]} 53. Bg6 {[%clk 0:00:11.3]} 53... Ka4 {[%clk 0:00:46.8]} 54.
Be8+ {[%clk 0:00:10.2]} 54... Bb5 {[%clk 0:00:43.7]} 55. Bf7 {[%clk 0:00:07.9]}
55... Bc6 {[%clk 0:00:44.3]} 56. Bb3+ {[%clk 0:00:07.6]} 56... Ka3 {[%clk
0:00:45]} 57. Bd1 {[%clk 0:00:09]} 57... e4 {[%clk 0:00:42.9]} 58. fxe4 {[%clk
0:00:08.5]} 58... Bxe4 {[%clk 0:00:44.1]} 59. Be2 {[%clk 0:00:10]} 59... Bb7
{[%clk 0:00:43.9]} 60. b5 {[%clk 0:00:09.9]} 60... f3 {[%clk 0:00:43.5]} 61. Bf1
{[%clk 0:00:07.5]} 61... axb5 {[%clk 0:00:44]} 62. Bxb5 {[%clk 0:00:08.1]} 62...
f2 {[%clk 0:00:41.3]} 63. a6 {[%clk 0:00:08.4]} 63... Bc6 {[%clk 0:00:42.5]} 64.
a7 {[%clk 0:00:04.8]} 64... Ba8 {[%clk 0:00:42.8]} 0-1

[Event "*** Titled Tuesday 3|2 Blitz"]
[Site "Chess.com"]
[Date "2015.07.07"]
[Round "8"]
[White "1random"]
[Black "Carolina-moon"]
[Result "1-0"]
[WhiteElo "1998"]
[BlackElo "1976"]
[TimeControl "180+2"]
[EndTime "12:43:09 PDT"]
[Termination "1random won by checkmate"]

1. e4 {[%clk 0:03:01.9]} 1... c5 {[%clk 0:02:59.9]} 2. Nf3 {[%clk 0:03:02.2]}
2... d6 {[%clk 0:03:01]} 3. d4 {[%clk 0:03:00.1]} 3... cxd4 {[%clk 0:03:02.9]}
4. Nxd4 {[%clk 0:03:02]} 4... Nf6 {[%clk 0:03:04.5]} 5. Nc3 {[%clk 0:03:02.8]}
5... a6 {[%clk 0:03:06]} 6. Bg5 {[%clk 0:03:01.2]} 6... e6 {[%clk 0:03:07.5]} 7.
f4 {[%clk 0:03:02]} 7... Be7 {[%clk 0:03:08.4]} 8. Qf3 {[%clk 0:03:03.2]} 8...
Qc7 {[%clk 0:03:09.9]} 9. O-O-O {[%clk 0:03:04.6]} 9... Nbd7 {[%clk 0:03:11.3]}
10. Kb1 {[%clk 0:02:54.2]} 10... b5 {[%clk 0:03:02]} 11. a3 {[%clk 0:02:49.6]}
11... Bb7 {[%clk 0:03:02]} 12. g4 {[%clk 0:02:37.8]} 12... Nc5 {[%clk 0:02:51]}
13. Bd3 {[%clk 0:02:30.5]} 13... h6 {[%clk 0:02:46.3]} 14. Bxf6 {[%clk
0:02:29.6]} 14... Bxf6 {[%clk 0:02:47.4]} 15. Nde2 {[%clk 0:02:31.5]} 15...
O-O-O {[%clk 0:02:30.5]} 16. h4 {[%clk 0:02:31.2]} 16... Kb8 {[%clk 0:02:29.5]}
17. g5 {[%clk 0:02:32]} 17... hxg5 {[%clk 0:02:30.7]} 18. hxg5 {[%clk
0:02:33.9]} 18... Rxh1 {[%clk 0:02:30.3]} 19. Rxh1 {[%clk 0:02:35.8]} 19... Be7
{[%clk 0:02:13.5]} 20. Rh7 {[%clk 0:02:34.5]} 20... Bf8 {[%clk 0:02:14.4]} 21.
Ng3 {[%clk 0:02:13.3]} 21... d5 {[%clk 0:01:39.9]} 22. exd5 {[%clk 0:02:05.2]}
22... exd5 {[%clk 0:01:28.9]} 23. Qe2 {[%clk 0:02:01.1]} 23... Ne6 {[%clk
0:01:22.2]} 24. Nh5 {[%clk 0:01:31.5]} 24... Nxf4 {[%clk 0:00:45]} 25. Nxf4
{[%clk 0:01:25.5]} 25... Qxf4 {[%clk 0:00:46.9]} 26. g6 {[%clk 0:01:09.1]} 26...
fxg6 {[%clk 0:00:44.8]} 27. Bxg6 {[%clk 0:01:09]} 27... b4 {[%clk 0:00:38.3]}
28. axb4 {[%clk 0:01:08.5]} 28... Bxb4 {[%clk 0:00:35.3]} 29. Rxg7 {[%clk
0:01:03.6]} 29... Qf6 {[%clk 0:00:31.8]} 30. Qh2+ {[%clk 0:00:45.2]} 30... Bd6
{[%clk 0:00:30]} 31. Qh7 {[%clk 0:00:43.9]} 31... Bc8 {[%clk 0:00:25]} 32. Bd3
{[%clk 0:00:33.5]} 32... Be5 {[%clk 0:00:17.8]} 33. Na4 {[%clk 0:00:28.7]} 33...
Qxg7 {[%clk 0:00:15.2]} 34. Qh4 {[%clk 0:00:28.4]} 34... Qc7 {[%clk 0:00:13.8]}
35. Nc5 {[%clk 0:00:24.5]} 35... Bb7 {[%clk 0:00:11.4]} 36. Ne6 {[%clk 0:00:22]}
36... Qb6 {[%clk 0:00:02.4]} 37. Qxd8+ {[%clk 0:00:19.3]} 37... Qxd8 {[%clk
0:00:03.5]} 38. Nxd8 {[%clk 0:00:21.2]} 38... Bc8 {[%clk 0:00:04.4]} 39. Nc6+
{[%clk 0:00:22.1]} 39... Kc7 {[%clk 0:00:04.2]} 40. Nxe5 {[%clk 0:00:24]} 40...
Kd6 {[%clk 0:00:06.1]} 41. Nf3 {[%clk 0:00:23.8]} 41... Kc5 {[%clk 0:00:07.3]}
42. c3 {[%clk 0:00:24.5]} 42... a5 {[%clk 0:00:08.8]} 43. Nd4 {[%clk 0:00:24.7]}
43... Bg4 {[%clk 0:00:08.8]} 44. Kc2 {[%clk 0:00:24.2]} 44... a4 {[%clk
0:00:09.3]} 45. Bb5 {[%clk 0:00:24]} 45... a3 {[%clk 0:00:03.5]} 46. bxa3 {[%clk
0:00:24.5]} 46... Bh5 {[%clk 0:00:02.4]} 47. Bd7 {[%clk 0:00:23.9]} 47... Bg6+
{[%clk 0:00:03.1]} 48. Bf5 {[%clk 0:00:24.6]} 48... Bf7 {[%clk 0:00:03.5]} 49.
Kb3 {[%clk 0:00:25.9]} 49... Be8 {[%clk 0:00:02.9]} 50. a4 {[%clk 0:00:27.1]}
50... Kb6 {[%clk 0:00:03.8]} 51. Kb4 {[%clk 0:00:28.1]} 51... Ka7 {[%clk
0:00:05]} 52. a5 {[%clk 0:00:28.9]} 52... Ka6 {[%clk 0:00:03.7]} 53. Nb3 {[%clk
0:00:29.5]} 53... Bf7 {[%clk 0:00:03.7]} 54. Nc5+ {[%clk 0:00:30.5]} 54... Ka7
{[%clk 0:00:04.8]} 55. a6 {[%clk 0:00:31.7]} 55... Be8 {[%clk 0:00:06]} 56. Ka5
{[%clk 0:00:32.7]} 56... Bc6 {[%clk 0:00:07.1]} 57. Nb3 {[%clk 0:00:32.9]} 57...
Be8 {[%clk 0:00:04.4]} 58. Nd4 {[%clk 0:00:34]} 58... Bd7 {[%clk 0:00:04.9]} 59.
Bxd7 {[%clk 0:00:34.1]} 59... Kb8 {[%clk 0:00:05.2]} 60. Kb6 {[%clk 0:00:34.7]}
60... Ka8 {[%clk 0:00:05]} 61. Nb5 {[%clk 0:00:34.7]} 61... Kb8 {[%clk
0:00:05.9]} 62. a7+ {[%clk 0:00:35.8]} 62... Ka8 {[%clk 0:00:07.4]} 63. Be8
{[%clk 0:00:36.8]} 63... d4 {[%clk 0:00:07.3]} 64. c4 {[%clk 0:00:38.2]} 64...
d3 {[%clk 0:00:08.6]} 65. c5 {[%clk 0:00:39.7]} 65... d2 {[%clk 0:00:10]} 66. c6
{[%clk 0:00:39.8]} 66... d1=Q {[%clk 0:00:10.9]} 67. Nc7# {[%clk 0:00:02.7]} 1-0